fUST/lending_fUST_20251022
["ID","MTS","AMOUNT","RATE_DAILY","PERIOD"]
[392052748,1761120646798,-54200.68398855,0.000348,12]
[392052749,1761120646808,-543.26,0.00034841,7]
[392052750,1761120646818,-400.0,0.0003489,120]
[392052751,1761120646828,-250.0,0.000349,10]
[392052752,1761120646838,-1003.123706,0.000349,16]
[392052753,1761120646849,-218.810133,0.0003492,10]
[392052754,1761120646860,-162.593911,0.0003492,10]
[392052755,1761120646870,-496.24129189,0.0003492,34]
[392052756,1761120646881,-159.1,0.00034961,30]
[392052757,1761120646892,-15207.01426387,0.00034968,3]
[392052758,1761120646903,-23862.80369552,0.0003499,2]
[392052759,1761120646914,-178.84688244,0.00034996,2]
[392052760,1761120646925,-682.01252049,0.00034996,2]
[392052761,1761120646937,-13071.17996816,0.00034996,2]
[392052762,1761120646949,-300.0,0.00035,2]
[392052763,1761120646959,-300.0,0.00035,2]
[392052764,1761120646971,-500.0,0.00035,30]
[392052765,1761120646982,-151.0,0.00035,13]
[392052766,1761120646993,-300.0,0.00035,13]
[392052767,1761120647006,-300.0,0.00035,13]
[392052768,1761120647017,-300.0,0.00035,13]
[392052769,1761120647029,-300.0,0.00035,13]
[392052770,1761120647040,-300.0,0.00035,13]
[392052771,1761120647052,-250.0,0.00035,10]
[392052772,1761120647062,-3549.065899,0.00035,2]
[392052773,1761120647073,-2000.0,0.00035026,30]
[392052774,1761120647083,-510.69,0.00035039,7]
[392052775,1761120647093,-3239.0,0.0003506,30]
[392052776,1761120647103,-218.810133,0.0003506,60]
[392052777,1761120647114,-162.593911,0.0003506,60]
[392052778,1761120647124,-942.52,0.00035064,7]
[392052779,1761120647135,-500.0,0.00035066,13]
[392052780,1761120647146,-500.0,0.00035066,13]
[392052781,1761120647158,-500.0,0.00035067,7]
[392052782,1761120647169,-500.0,0.00035073,5]
[392052783,1761120647181,-500.0,0.00035073,5]
[392052784,1761120647192,-500.0,0.00035073,5]
[392052785,1761120647204,-501.58360554,0.00035073,5]
[392052786,1761120647215,-500.0,0.00035073,5]
[392052787,1761120647225,-500.0,0.00035073,5]
[392052788,1761120647235,-500.0,0.00035073,5]
[392052789,1761120647245,-500.0,0.00035073,5]
[392052790,1761120647256,-500.0,0.00035073,5]
[392052791,1761120647266,-500.0,0.00035073,5]
[392052792,1761120647278,-400.24667751,0.00035073,5]
[392052793,1761120647288,-500.0,0.00035073,5]
[392052794,1761120647299,-500.0,0.00035073,5]
[392052795,1761120647310,-162.03511569,0.00035073,5]
[392052796,1761120647321,-504.43064108,0.00035073,5]
[392052797,1761120647331,-512.76098519,0.00035073,5]
[392052798,1761120647341,-500.0,0.00035073,5]
[392052799,1761120647351,-500.0,0.00035089,7]
[392052800,1761120647361,-3096589.5333715,0.00035096,20]
[392052801,1761120647371,-5492.37753928,0.00035096,7]
[392052802,1761120647381,-186.54554096,0.00035096,2]
[392052803,1761120647392,-26052.31556011,0.00035096,12]
[392052804,1761120647403,-1819.21079941,0.00035096,5]
[392052805,1761120647413,-250.0,0.00035096,10]
[392052806,1761120647423,-250.0,0.00035096,10]
[392052807,1761120647433,-250.0,0.00035096,10]
[392052808,1761120647443,-250.0,0.00035096,10]
[392052809,1761120647454,-250.738656,0.00035096,10]
[392052810,1761120647466,-5000.0,0.00035096,30]
[392052811,1761120647476,-517.76991107,0.00035096,30]
[392052812,1761120647487,-250.0,0.000351,10]
[392052813,1761120647498,-543.26,0.00035115,7]
[392052814,1761120647509,-250.0,0.000352,10]
[392052815,1761120647519,-250.0,0.000353,10]
[392052816,1761120647530,-510.69,0.00035313,7]
[392052817,1761120647541,-448.06854239,0.00035321,5]
[392052818,1761120647552,-1000.0,0.00035321,5]
[392052819,1761120647564,-327.55027173,0.00035321,5]
[392052820,1761120647575,-1002.08842248,0.00035321,4]
[392052821,1761120647586,-1008.97762005,0.00035321,5]
[392052822,1761120647596,-1000.0,0.00035321,5]
[392052823,1761120647606,-1000.0,0.00035321,5]
[392052824,1761120647617,-1000.0,0.00035321,5]
[392052825,1761120647627,-1000.0,0.00035321,5]
[392052826,1761120647637,-942.52,0.00035338,7]
[392052827,1761120647648,-500.0,0.00035341,7]
[392052828,1761120647658,-600.0,0.00035342,30]
[392052829,1761120647669,-543.26,0.00035389,7]
[392052830,1761120647679,-165.9998545,0.000354,120]
[392052831,1761120647690,-399.73124783,0.000354,120]
[392052832,1761120647700,-353.400576,0.000354,10]
[392052833,1761120647711,-510.69,0.00035587,7]
[392052834,1761120647831,-532.576,0.00035598,2]
[392052835,1761120647848,-632.0,0.00035598,2]
[392052836,1761120647860,-2164.0,0.00035598,2]
[392052837,1761120647870,-411.0,0.00035598,2]
[392052838,1761120647881,-429.892,0.00035598,2]
[392052839,1761120647891,-942.52,0.00035612,7]
[392052840,1761120647901,-500.0,0.00035615,7]
[392052841,1761120647911,-192.63013562,0.00035616,2]
[392052842,1761120647920,-1000.0,0.00035621,5]
[392052843,1761120647931,-500.0,0.00035621,5]
[392052844,1761120647940,-505.16046069,0.00035621,5]
[392052845,1761120647949,-1000.0,0.00035621,5]
[392052846,1761120647959,-1002.88994788,0.00035621,5]
[392052847,1761120647968,-1000.0,0.00035621,5]
[392052848,1761120647978,-536.80750785,0.00035621,5]
[392052849,1761120647988,-259.65550282,0.00035621,5]
[392052850,1761120647997,-1000.0,0.00035621,5]
[392052851,1761120648007,-1000.0,0.00035621,5]
[392052852,1761120648017,-1012.09937031,0.00035621,5]
[392052853,1761120648027,-1000.0,0.00035621,5]
[392052854,1761120648036,-543.26,0.00035663,7]
[392052855,1761120648046,-15973.31962103,0.000358,60]
[392052856,1761120648055,-510.69,0.00035861,7]
[392052857,1761120648065,-780.79681381,0.00035868,5]
[392052858,1761120648075,-1500.0,0.00035868,5]
[392052859,1761120648085,-1500.0,0.00035868,5]
[392052860,1761120648094,-1500.0,0.00035868,5]
[392052861,1761120648104,-214.0,0.00035868,5]
[392052862,1761120648113,-942.52,0.00035886,7]
[392052863,1761120648123,-500.0,0.00035889,7]
[392052864,1761120648132,-200.0,0.000359,120]
[392052865,1761120648142,-200.0,0.000359,120]
[392052866,1761120648152,-543.26,0.00035937,7]
[392052867,1761120648161,-319.0,0.00036,10]
[392052868,1761120648171,-200.0,0.00036,120]
[392052869,1761120648180,-218.810133,0.00036093,10]
[392052870,1761120648190,-162.593911,0.00036093,10]
[392052871,1761120648199,-510.69,0.00036135,7]
[392052872,1761120648209,-942.52,0.0003616,7]
[392052873,1761120648218,-500.0,0.00036163,7]
[392052874,1761120648228,-1500.0,0.00036168,5]
[392052875,1761120648238,-1501.73134156,0.00036168,5]
[392052876,1761120648247,-713.81636574,0.00036168,5]
[392052877,1761120648256,-1500.0,0.00036168,5]
[392052878,1761120648266,-543.26,0.00036211,7]
[392052879,1761120648275,-153.0,0.00036266,30]
[392052880,1761120648284,-153.0,0.00036266,30]
[392052881,1761120648294,-153.0,0.00036266,30]
[392052882,1761120648303,-153.0,0.00036266,30]
[392052883,1761120648312,-153.0,0.00036266,30]
[392052884,1761120648321,-153.0,0.00036266,30]
[392052885,1761120648330,-14275.65,0.000364,14]
[392052886,1761120648339,-477.66056488,0.00036404,2]
[392052887,1761120648348,-510.69,0.00036409,7]
[392052888,1761120648357,-186.408738,0.00036434,120]
[392052889,1761120648367,-942.52,0.00036434,7]
[392052890,1761120648376,-500.0,0.00036437,7]
[392052891,1761120648387,-543.26,0.00036485,7]
[392052892,1761120648396,-433.70664939,0.000365,120]
[392052893,1761120648406,-187.10934597,0.000365,120]
[392052894,1761120648415,-176.88359495,0.000365,120]
[392052895,1761120648424,-1307.25979009,0.000365,120]
[392052896,1761120648433,-298.49122851,0.000365,120]
[392052897,1761120648443,-510.69,0.00036683,7]
[392052898,1761120648452,-1645.21,0.000367,14]
[392052899,1761120648461,-830.5243797,0.00036703,30]
[392052900,1761120648471,-942.52,0.00036708,7]
[392052901,1761120648480,-500.0,0.00036711,7]
[392052902,1761120648489,-264.89492681,0.00036716,5]
[392052903,1761120648499,-2000.0,0.00036716,5]
[392052904,1761120648509,-543.26,0.00036759,7]
[392052905,1761120648518,-218.810133,0.00036766,7]
[392052906,1761120648527,-162.593911,0.00036766,7]
[392052907,1761120648536,-158.97718662,0.00036767,30]
[392052908,1761120648546,-250.29,0.000368,7]
[392052909,1761120648555,-5000.0,0.00036848,4]
[392052910,1761120648567,-510.69,0.00036957,7]
[392052911,1761120648576,-942.52,0.00036982,7]
[392052912,1761120648586,-500.0,0.00036985,7]
[392052913,1761120648595,-1565.39,0.00037,30]
[392052914,1761120648604,-543.26,0.00037033,7]
[392052915,1761120648613,-510.69,0.00037231,7]
[392052916,1761120648623,-942.52,0.00037256,7]
[392052917,1761120648632,-500.0,0.00037259,7]
[392052918,1761120648641,-500.0,0.00037264,5]
[392052919,1761120648650,-218.810133,0.00037266,10]
[392052920,1761120648659,-162.593911,0.00037266,10]
[392052921,1761120648668,-150.0,0.00037269,2]
[392052922,1761120648678,-543.26,0.00037307,7]
[392052923,1761120648687,-510.69,0.00037505,7]
[392052924,1761120648696,-942.52,0.0003753,7]
[392052925,1761120648705,-500.0,0.00037533,7]
[392052926,1761120648715,-543.26,0.00037581,7]
[392052927,1761120648723,-433.70664939,0.000376,120]
[392052928,1761120648732,-399.73124783,0.000376,120]
[392052929,1761120648741,-936.44209608,0.00037753,120]
[392052930,1761120648751,-510.91,0.00037779,7]
[392052931,1761120648760,-942.52,0.00037804,7]
[392052932,1761120648769,-500.0,0.00037807,7]
[392052933,1761120648778,-543.26,0.00037855,7]
[392052934,1761120648787,-218.810133,0.00037927,2]
[392052935,1761120648797,-162.593911,0.00037927,2]
[392052936,1761120648807,-218.810133,0.00037929,60]
[392052937,1761120648816,-162.593911,0.00037929,60]
[392052938,1761120648825,-200.0,0.00038,120]
[392052939,1761120648835,-942.52,0.00038078,7]
[392052940,1761120648844,-500.0,0.00038081,7]
[392052941,1761120648853,-168.0,0.00038098,2]
[392052942,1761120648862,-543.26,0.00038129,7]
[392052943,1761120648871,-168.0,0.00038149,2]
[392052944,1761120648881,-168.0,0.00038157,2]
[392052945,1761120648891,-942.52,0.00038352,7]
[392052946,1761120648900,-500.0,0.00038355,7]
[392052947,1761120648909,-543.26,0.00038403,7]
[392052948,1761120648918,-200.0,0.00038438,120]
[392052949,1761120648926,-218.810133,0.0003844,10]
[392052950,1761120648936,-162.593911,0.0003844,10]
[392052951,1761120648945,-256.0123025,0.00038555,2]
[392052952,1761120648954,-632.0,0.00038598,2]
[392052953,1761120648963,-2164.0,0.00038598,2]
[392052954,1761120648971,-411.0,0.00038598,2]
[392052955,1761120648981,-411.0,0.00038598,2]
[392052956,1761120648991,-14275.65,0.000386,14]
[392052957,1761120649000,-942.52,0.00038626,7]
[392052958,1761120649010,-500.0,0.00038629,7]
[392052959,1761120649019,-543.26,0.00038677,7]
[392052960,1761120649028,-433.70664939,0.000387,120]
[392052961,1761120649038,-168.0,0.00038742,2]
[392052962,1761120649048,-500.0,0.0003885,5]
[392052963,1761120649057,-720.0,0.00038876,90]
[392052964,1761120649066,-942.52,0.000389,7]
[392052965,1761120649075,-500.0,0.00038903,7]
[392052966,1761120649085,-477.66056488,0.00038903,2]
[392052967,1761120649095,-543.26,0.00038951,7]
[392052968,1761120649104,-200.0,0.00038955,120]
[392052969,1761120649114,-168.0,0.00039112,2]
[392052970,1761120649123,-168.0,0.00039131,2]
[392052971,1761120649133,-942.52,0.00039174,7]
[392052972,1761120649142,-500.0,0.00039177,7]
[392052973,1761120649151,-543.26,0.00039225,7]
[392052974,1761120649160,-552.0,0.00039233,30]
[392052975,1761120649169,-218.810133,0.00039397,7]
[392052976,1761120649178,-162.593911,0.00039397,7]
[392052977,1761120649187,-500.71126809,0.00039398,5]
[392052978,1761120649196,-1645.21,0.000394,14]
[392052979,1761120649205,-250.29,0.000394,7]
[392052980,1761120649214,-942.52,0.00039448,7]
[392052981,1761120649222,-500.0,0.00039451,7]
[392052982,1761120649232,-543.26,0.00039499,7]
[392052983,1761120649240,-646.621971,0.00039654,2]
[392052984,1761120649250,-942.52,0.00039722,7]
[392052985,1761120649259,-500.0,0.00039725,7]
[392052986,1761120649268,-543.26,0.00039773,7]
[392052987,1761120649278,-173.75143107,0.0003989,2]
[392052988,1761120649288,-168.0,0.00039899,2]
[392052989,1761120649297,-1000.0,0.0003998,8]
[392052990,1761120649307,-942.52,0.00039996,7]
[392052991,1761120649316,-600.0,0.0004,30]
[392052992,1761120649326,-200.0,0.0004,120]
[392052993,1761120649335,-160.0,0.0004,120]
[392052994,1761120649344,-543.38,0.00040047,7]
[392052995,1761120649354,-23392.79,0.00040244,14]
[392052996,1761120649364,-20778.34,0.00040244,14]
[392052997,1761120649373,-942.52,0.0004027,7]
[392052998,1761120649383,-942.61438881,0.00040544,7]
[392052999,1761120649392,-150.0,0.00040657,2]
[392053000,1761120649401,-150.0,0.00040706,30]
[392053001,1761120649410,-218.810133,0.00040798,60]
[392053002,1761120649420,-162.593911,0.00040798,60]
[392053003,1761120649430,-307.3474598,0.00040977,30]
[392053004,1761120649440,-8597.91,0.0004105,14]
[392053005,1761120649450,-50000.0,0.00041096,120]
[392053006,1761120649460,-1063.7264155,0.00041127,15]
[392053007,1761120649469,-11233.22,0.00041258,14]
[392053008,1761120649479,-477.66056488,0.00041403,28]
[392053009,1761120649488,-632.0,0.00041598,2]
[392053010,1761120649498,-2164.0,0.00041598,2]
[392053011,1761120649508,-411.0,0.00041598,2]
[392053012,1761120649518,-411.0,0.00041598,2]
[392053013,1761120649528,-14275.65,0.000416,14]
[392053014,1761120649537,-3298.1016929,0.00041625,2]
[392053015,1761120649546,-186.408738,0.00041639,120]
[392053016,1761120649556,-900.1087734,0.00041723,2]
[392053017,1761120649569,-3099.48,0.00041727,14]
[392053018,1761120649579,-200.0,0.00042,120]
[392053019,1761120649589,-154.761601,0.00042027,7]
[392053020,1761120649597,-161.720033,0.00042027,7]
[392053021,1761120649607,-218.810133,0.00042027,7]
[392053022,1761120649616,-162.593911,0.00042027,7]
[392053023,1761120649625,-153.914964,0.00042027,7]
[392053024,1761120649635,-786.59,0.0004207,14]
[392053025,1761120649644,-200.0,0.0004209,120]
[392053026,1761120649653,-1645.21,0.000421,14]
[392053027,1761120649663,-218.810133,0.0004237,2]
[392053028,1761120649672,-162.593911,0.0004237,2]
[392053029,1761120649681,-831.02,0.00042464,14]
[392053030,1761120649691,-256.0123025,0.00042605,2]
[392053031,1761120649700,-864.0,0.00042764,90]
[392053032,1761120649710,-1096.7,0.00042914,14]
[392053033,1761120649719,-735.9059589,0.00043214,2]
[392053034,1761120649728,-200.8414147,0.00043333,2]
[392053035,1761120649738,-439435.15,0.00043368,14]
[392053036,1761120649747,-107042.73,0.00043573,14]
[392053037,1761120649757,-218.810133,0.00043668,60]
[392053038,1761120649767,-162.593911,0.00043668,60]
[392053039,1761120649777,-200.0,0.00043685,120]
[392053040,1761120649788,-150.46547949,0.00043766,7]
[392053041,1761120649798,-250.29,0.000438,14]
[392053042,1761120649807,-300.0,0.000438,12]
[392053043,1761120649817,-300.0,0.000438,12]
[392053044,1761120649826,-500.0,0.00043836,120]
[392053045,1761120649835,-300.0,0.00043873,10]
[392053046,1761120649845,-209.48068586,0.0004389,3]
[392053047,1761120649854,-1499999.0,0.000439,2]
[392053048,1761120649865,-220.721238,0.000439,120]
[392053049,1761120649875,-151.0,0.000439,120]
[392053050,1761120649884,-151.0,0.000439,120]
[392053051,1761120649893,-151.0,0.000439,120]
[392053052,1761120649903,-301.582845,0.000439,120]
[392053053,1761120649912,-151.0,0.000439,120]
[392053054,1761120649921,-151.0,0.000439,120]
[392053055,1761120649930,-301.582845,0.000439,120]
[392053056,1761120649939,-151.0,0.000439,120]
[392053057,1761120649949,-301.582845,0.000439,120]
[392053058,1761120649959,-301.582845,0.000439,120]
[392053059,1761120649968,-151.0,0.000439,120]
[392053060,1761120649978,-151.0,0.000439,120]
[392053061,1761120649987,-151.0,0.000439,120]
[392053062,1761120649997,-154.84119,0.000439,120]
[392053063,1761120650007,-153.321723,0.000439,120]
[392053064,1761120650016,-151.0,0.000439,120]
[392053065,1761120650026,-151.0,0.000439,120]
[392053066,1761120650035,-151.49528,0.000439,120]
[392053067,1761120650044,-151.0,0.000439,120]
[392053068,1761120650054,-151.0,0.000439,120]
[392053069,1761120650063,-196.410191,0.000439,120]
[392053070,1761120650072,-161.500086,0.000439,120]
[392053071,1761120650081,-161.500086,0.000439,120]
[392053072,1761120650091,-161.500086,0.000439,120]
[392053073,1761120650100,-161.500086,0.000439,120]
[392053074,1761120650110,-151.0,0.000439,120]
[392053075,1761120650120,-151.0,0.000439,120]
[392053076,1761120650129,-151.0,0.000439,120]
[392053077,1761120650138,-151.0,0.000439,120]
[392053078,1761120650147,-151.0,0.000439,120]
[392053079,1761120650156,-151.0,0.000439,120]
[392053080,1761120650165,-151.0,0.000439,120]
[392053081,1761120650174,-151.0,0.000439,120]
[392053082,1761120650183,-153.311693,0.000439,120]
[392053083,1761120650192,-244.785127,0.000439,120]
[392053084,1761120650202,-151.0,0.000439,120]
[392053085,1761120650212,-151.0,0.000439,120]
[392053086,1761120650221,-151.0,0.000439,120]
[392053087,1761120650231,-151.61933,0.000439,30]
[392053088,1761120650240,-155.475804,0.000439,120]
[392053089,1761120650249,-155.475804,0.000439,120]
[392053090,1761120650259,-155.475804,0.000439,120]
[392053091,1761120650269,-155.475804,0.000439,120]
[392053092,1761120650278,-152.815718,0.000439,120]
[392053093,1761120650287,-802.194534,0.000439,120]
[392053094,1761120650296,-802.194534,0.000439,120]
[392053095,1761120650306,-802.194534,0.000439,120]
[392053096,1761120650316,-802.194534,0.000439,120]
[392053097,1761120650326,-151.0,0.000439,120]
[392053098,1761120650335,-151.0,0.000439,120]
[392053099,1761120650345,-152.490635,0.000439,120]
[392053100,1761120650354,-152.490635,0.000439,120]
[392053101,1761120650364,-152.490635,0.000439,120]
[392053102,1761120650374,-152.490635,0.000439,120]
[392053103,1761120650383,-151.0,0.000439,15]
[392053104,1761120650393,-151.0,0.000439,15]
[392053105,1761120650402,-151.0,0.000439,15]
[392053106,1761120650412,-371.122771,0.000439,120]
[392053107,1761120650421,-151.0,0.000439,120]
[392053108,1761120650430,-371.122771,0.000439,120]
[392053109,1761120650439,-6060.611499,0.000439,120]
[392053110,1761120650448,-151.0,0.000439,120]
[392053111,1761120650457,-371.122771,0.000439,120]
[392053112,1761120650467,-151.0,0.000439,120]
[392053113,1761120650477,-6060.611499,0.000439,120]
[392053114,1761120650486,-151.0,0.000439,120]
[392053115,1761120650496,-1297.42021,0.000439,120]
[392053116,1761120650505,-371.122771,0.000439,120]
[392053117,1761120650515,-6060.611499,0.000439,120]
[392053118,1761120650524,-151.0,0.000439,120]
[392053119,1761120650533,-1297.42021,0.000439,120]
[392053120,1761120650542,-6060.611499,0.000439,120]
[392053121,1761120650551,-1297.42021,0.000439,120]
[392053122,1761120650562,-1297.42021,0.000439,120]
[392053123,1761120650574,-151.0,0.000439,120]
[392053124,1761120650584,-172.138314,0.000439,120]
[392053125,1761120650594,-151.0,0.000439,120]
[392053126,1761120650603,-285.598368,0.000439,120]
[392053127,1761120650612,-285.598368,0.000439,120]
[392053128,1761120650622,-285.598368,0.000439,120]
[392053129,1761120650631,-168.181996,0.000439,120]
[392053130,1761120650640,-285.598368,0.000439,120]
[392053131,1761120650649,-151.0,0.000439,120]
[392053132,1761120650659,-151.0,0.000439,120]
[392053133,1761120650760,-151.0,0.000439,120]
[392053134,1761120650770,-151.0,0.000439,120]
[392053135,1761120650780,-151.0,0.000439,120]
[392053136,1761120650789,-151.0,0.000439,120]
[392053137,1761120650799,-151.0,0.000439,120]
[392053138,1761120650808,-151.0,0.000439,120]
[392053139,1761120650818,-231.946279,0.000439,120]
[392053140,1761120650828,-151.0,0.000439,120]
[392053141,1761120650838,-231.946279,0.000439,120]
[392053142,1761120650847,-231.946279,0.000439,120]
[392053143,1761120650856,-151.0,0.000439,120]
[392053144,1761120650866,-231.946279,0.000439,120]
[392053145,1761120650875,-320.607332,0.000439,120]
[392053146,1761120650884,-320.607332,0.000439,120]
[392053147,1761120650894,-320.607332,0.000439,120]
[392053148,1761120650904,-320.607332,0.000439,120]
[392053149,1761120650914,-477.66056488,0.00043902,28]
[392053150,1761120650924,-200.0,0.00043983,120]
[392053151,1761120650933,-200.0,0.00044,120]
[392053152,1761120650943,-150.0,0.00044045,2]
[392053153,1761120650952,-150.0,0.00044407,30]
[392053154,1761120650961,-166.397,0.00044598,2]
[392053155,1761120650970,-1846.375,0.00044598,2]
[392053156,1761120650979,-297.648,0.00044598,2]
[392053157,1761120650989,-411.0,0.00044598,2]
[392053158,1761120650999,-15647.17018587,0.00045,120]
[392053159,1761120651008,-35513.96761115,0.00045,120]
[392053160,1761120651018,-157.0,0.00045,90]
[392053161,1761120651028,-600.0,0.00045252,2]
[392053162,1761120651037,-218.810133,0.00045444,30]
[392053163,1761120651047,-162.593911,0.00045444,30]
[392053164,1761120651057,-14275.65,0.000457,14]
[392053165,1761120651067,-601.48251072,0.00045723,2]
[392053166,1761120651077,-500.0,0.000458,60]
[392053167,1761120651088,-14593.223754,0.000458,120]
[392053168,1761120651098,-200.0,0.00045847,120]
[392053169,1761120651108,-50000.0,0.000459,120]
[392053170,1761120651118,-218.810133,0.00046047,30]
[392053171,1761120651128,-162.593911,0.00046047,30]
[392053172,1761120651137,-7502.78247314,0.00046084,100]
[392053173,1761120651147,-646.621971,0.00046143,2]
[392053174,1761120651157,-5138.0,0.000462,120]
[392053175,1761120651166,-27991.09194757,0.000462,30]
[392053176,1761120651176,-1645.21,0.000464,14]
[392053177,1761120651185,-477.66056488,0.00046401,28]
[392053178,1761120651194,-500.0,0.0004644,60]
[392053179,1761120651205,-500.0,0.0004644,60]
[392053180,1761120651214,-500.0,0.0004644,60]
[392053181,1761120651226,-218.810133,0.00046537,60]
[392053182,1761120651235,-162.593911,0.00046537,60]
[392053183,1761120651245,-218.810133,0.0004665,30]
[392053184,1761120651255,-162.593911,0.0004665,30]
[392053185,1761120651264,-256.0123025,0.00046654,2]
[392053186,1761120651274,-170.6748684,0.00046654,2]
[392053187,1761120651284,-800.0,0.00046739,14]
[392053188,1761120651293,-218.810133,0.00046813,2]
[392053189,1761120651303,-162.593911,0.00046813,2]
[392053190,1761120651312,-186.408738,0.00046843,120]
[392053191,1761120651322,-500.0,0.00046896,60]
[392053192,1761120651332,-1000.0,0.0004704,90]
[392053193,1761120651341,-491620.42390794,0.00047095,60]
[392053194,1761120651351,-224.54820961,0.00047209,14]
[392053195,1761120651360,-218.810133,0.00047252,30]
[392053196,1761120651369,-162.593911,0.00047252,30]
[392053197,1761120651379,-160.0,0.00047291,5]
[392053198,1761120651388,-250.29,0.000473,14]
[392053199,1761120651398,-250.0,0.000474,30]
[392053200,1761120651407,-250.0,0.000474,30]
[392053201,1761120651417,-250.0,0.000474,30]
[392053202,1761120651427,-250.0,0.000474,30]
[392053203,1761120651436,-169.9,0.000474,30]
[392053204,1761120651445,-194.603701,0.000474,2]
[392053205,1761120651454,-181.19,0.00047433,2]
[392053206,1761120651464,-279009.8366,0.00047444,30]
[392053207,1761120651473,-2711522.7564,0.00047444,30]
[392053208,1761120651482,-151.0,0.00047444,120]
[392053209,1761120651491,-151.0,0.00047444,120]
[392053210,1761120651501,-151.0,0.00047444,120]
[392053211,1761120651510,-151.0,0.00047444,120]
[392053212,1761120651519,-151.0,0.00047444,120]
[392053213,1761120651529,-151.0,0.00047444,120]
[392053214,1761120651539,-151.0,0.00047444,120]
[392053215,1761120651548,-151.0,0.00047444,120]
[392053216,1761120651557,-152.956811,0.00047444,120]
[392053217,1761120651571,-151.0,0.00047444,120]
[392053218,1761120651581,-151.672801,0.00047444,120]
[392053219,1761120651591,-151.0,0.00047444,120]
[392053220,1761120651600,-151.0,0.00047444,120]
[392053221,1761120651610,-151.0,0.00047444,30]
[392053222,1761120651619,-187.817861,0.00047444,120]
[392053223,1761120651629,-187.817861,0.00047444,120]
[392053224,1761120651638,-151.0,0.00047444,120]
[392053225,1761120651648,-187.817861,0.00047444,120]
[392053226,1761120651658,-187.817861,0.00047444,120]
[392053227,1761120651667,-155.59347,0.00047444,120]
[392053228,1761120651676,-151.0,0.00047444,120]
[392053229,1761120651685,-151.0,0.00047444,120]
[392053230,1761120651694,-636.640576,0.00047444,120]
[392053231,1761120651704,-636.640576,0.00047444,120]
[392053232,1761120651713,-636.640576,0.00047444,120]
[392053233,1761120651723,-636.640576,0.00047444,120]
[392053234,1761120651732,-151.0,0.00047444,120]
[392053235,1761120651741,-151.0,0.00047444,30]
[392053236,1761120651751,-156.400175,0.00047444,120]
[392053237,1761120651761,-152.72519,0.00047444,120]
[392053238,1761120651770,-173.669338,0.00047444,120]
[392053239,1761120651779,-173.669338,0.00047444,120]
[392053240,1761120651788,-173.669338,0.00047444,120]
[392053241,1761120651798,-151.0,0.00047444,120]
[392053242,1761120651807,-173.669338,0.00047444,120]
[392053243,1761120651816,-152.000922,0.00047444,120]
[392053244,1761120651826,-151.0,0.00047444,120]
[392053245,1761120651835,-151.0,0.00047444,120]
[392053246,1761120651845,-151.0,0.00047444,120]
[392053247,1761120651854,-151.0,0.00047444,120]